lending/lending_fUSD_20260104
["ID","MTS","AMOUNT","RATE_DAILY","PERIOD"]
[400420587,1767535254090,500.0,0.00015597,2]
[400420588,1767535254135,500.0,0.00015597,2]
[400420589,1767535254177,500.0,0.00015597,2]
[400420590,1767535254219,500.0,0.00015597,2]
[400420591,1767535254260,500.0,0.00015597,2]
[400420592,1767535254301,500.0,0.00015597,2]
[400420593,1767535254342,500.0,0.00015597,2]
[400420594,1767535254392,500.0,0.00015597,2]
[400420595,1767535254437,500.0,0.00015597,2]
[400420596,1767535254477,500.0,0.00015597,2]
[400420597,1767535254519,500.0,0.00015597,2]
[400420598,1767535254560,500.0,0.00015597,2]
[400420599,1767535254629,500.0,0.00015597,2]
[400420600,1767535254678,241.31320904,0.00015597,2]
[400420601,1767535254712,258.68679096,0.00015597,2]
[400420602,1767535254756,500.0,0.00015597,2]
[400420603,1767535254797,500.0,0.00015597,2]
[400420604,1767535254840,500.0,0.00015597,2]
[400420605,1767535254886,403.82228951,0.00015597,2]
[400420606,1767535254988,500.0,0.00015597,2]
[400420607,1767535255277,500.0,0.00015597,2]
[400420608,1767535256591,500.0,0.00015597,2]
[400420609,1767535259365,377.43466482,0.00015597,2]
[400420610,1767535259412,1189.13101956,0.00015597,2]
[400420611,1767535260685,594.56550978,0.00015597,2]
[400420612,1767535260849,251.62310988,0.00015597,2]
[400420613,1767535261425,300.0,0.00015597,2]
[400420614,1767535262032,167.74873992,0.00015597,2]
[400420615,1767535262072,297.28275489,0.00015597,2]
[400420616,1767535262777,297.28275489,0.00015597,2]
[400420617,1767535262921,151.0,0.00015597,2]
[400420618,1767535263699,184.49747983,0.00015597,2]
[400420619,1767535270571,500.0,0.00015597,2]
[400420620,1767535273891,500.0,0.00015597,2]
[400420621,1767535273936,500.0,0.00015597,2]
[400420622,1767535273981,500.0,0.00015597,2]
[400420623,1767535274022,500.0,0.00015597,2]
[400420624,1767535274064,26.93488596,0.00015597,2]
[400420625,1767535274102,473.06511404,0.00015597,2]
[400420626,1767535274144,500.0,0.00015597,2]
[400420627,1767535274245,500.0,0.00015597,2]
[400420635,1767535319765,10000.01,0.00015597,2]
[400420636,1767535319796,8755.67113208,0.00015597,2]
[400420639,1767535381434,300.0,0.00015597,2]
[400420640,1767535381810,300.0,0.00015597,2]
[400420644,1767535422393,644.33886792,0.00015595,2]
[400420645,1767535422423,778.50113208,0.00015595,2]
[400420646,1767535426818,266.21911777,0.00015597,2]
[400420667,1767535462698,1178.78,0.00015542,2]
[400420670,1767535501236,1200.0,0.00015597,2]
[400420671,1767535501272,300.0,0.00015597,2]
[400420672,1767535501513,300.0,0.00015597,2]
[400420673,1767535503787,500.0,0.00015597,2]
[400420675,1767535528776,1437.28,0.00015488,2]
[400420676,1767535561487,300.0,0.00015597,2]
[400420677,1767535563277,300.0,0.00015597,2]
[400420678,1767535571573,510.914429,0.00015597,2]
[400420679,1767535587667,1531.2,7.744e-05,2]
[400420680,1767535587936,1397.11532115,8.152e-05,2]
[400420681,1767535587965,134.08467885,8.152e-05,2]
[400420682,1767535588135,1531.2,8.559e-05,2]
[400420683,1767535588345,1531.2,8.967e-05,2]
[400420684,1767535588548,1531.2,9.374e-05,2]
[400420685,1767535588732,1531.2,9.782e-05,2]
[400420686,1767535588957,1531.2,0.0001019,2]
[400420687,1767535589159,1531.2,0.00010597,2]
[400420688,1767535589345,678.72532115,0.00011005,2]
[400420689,1767535589374,852.47467885,0.00011005,2]
[400420690,1767535589537,1531.2,0.00011412,2]
[400420691,1767535589731,1531.2,0.0001182,2]
[400420692,1767535589918,1531.2,0.00012228,2]
[400420693,1767535590133,1531.2,0.00012635,2]
[400420694,1767535590328,1531.2,0.00013043,2]
[400420695,1767535590529,1491.53532115,0.0001345,2]
[400420696,1767535590558,39.66467885,0.0001345,2]
[400420697,1767535590722,1531.2,0.00013858,2]
[400420698,1767535590920,1531.2,0.00014266,2]
[400420699,1767535591131,1531.2,0.00014673,2]
[400420700,1767535591418,1531.2,0.00015081,2]
[400420701,1767535591608,1531.2,0.00015488,2]
[400420702,1767535621716,300.0,0.00015597,2]
[400420703,1767535633245,500.0,0.00015597,2]
[400420704,1767535658947,500.0,0.00015597,2]
[400420708,1767535689938,500.0,0.00015597,2]
[400420719,1767535726132,597.7787886,0.00015597,2]
[400420720,1767535740058,3319.2661464,0.00015498,2]
[400420721,1767535741956,300.0,0.00015597,2]
[400420722,1767535746135,-476.91426169,0.00015598,2]
[400420723,1767535778438,500.0,0.00015597,2]
[400420724,1767535801283,300.0,0.00015597,2]
[400420725,1767535801321,300.0,0.00015597,2]
[400420726,1767535801359,1200.0,0.00015597,2]
[400420727,1767535803212,280.0,0.00015598,2]
[400420731,1767535831511,-23.08573831,0.00015598,2]
[400420732,1767535831522,-500.0,0.00015598,2]
[400420733,1767535831536,-116.50717687,0.00015598,2]
[400420734,1767535831548,-254.72572641,0.00015598,2]
[400420735,1767535831563,-128.76709672,0.00015598,2]
[400420736,1767535831572,-60935.63255759,0.00015598,2]
[400420737,1767535831584,-4444.35,0.00015598,2]
[400420738,1767535831596,-423.26541889,0.00015598,2]
[400420739,1767535831607,-287.06431718,0.00015598,2]
[400420740,1767535831619,-182132.52155937,0.00015598,2]
[400420741,1767535831629,-1000.0,0.00015598,2]
[400420742,1767535831639,-300.0,0.00015598,2]
[400420743,1767535831649,-300.0,0.00015599,2]
[400420744,1767535831659,-195.0,0.00015599,2]
[400420745,1767535831668,-300.0,0.000156,2]
[400420746,1767535831678,-300.0,0.000156,2]
[400420747,1767535831687,-172.686956,0.000156,2]
[400420748,1767535831697,-195.0,0.00015601,2]
[400420749,1767535831707,-300.0,0.00015603,2]
[400420750,1767535831717,-250.0,0.00015603,2]
[400420751,1767535831727,-195.0,0.00015615,2]
[400420752,1767535831737,-3319.26614632,0.00015765,2]
[400420753,1767535831747,-500.0,0.00015797,2]
[400420754,1767535831757,-500.0,0.00015797,2]
[400420755,1767535831767,-500.0,0.00015797,2]
[400420756,1767535831776,-9999.99,0.00015797,2]
[400420757,1767535831786,-8709.94,0.00015797,2]
[400420758,1767535831796,-150.99,0.00015797,2]
[400420759,1767535831805,-299.99,0.00015797,2]
[400420760,1767535831815,-9999.99,0.00015797,2]
[400420761,1767535831824,-743.16,0.00015797,2]
[400420762,1767535831834,-1295.18,0.00015797,2]
[400420763,1767535831844,-1000.0,0.00015897,2]
[400420764,1767535831853,-1852.42,0.00015978,2]
[400420765,1767535831863,-3319.26614632,0.00016032,2]
[400420766,1767535831872,-200.0,0.00016046,2]
[400420767,1767535831883,-207.4,0.00016046,2]
[400420768,1767535831897,-215.0738,0.00016046,2]
[400420769,1767535831907,-223.0315306,0.00016046,2]
[400420770,1767535831917,-231.28369723,0.00016046,2]
[400420771,1767535831927,-239.84119403,0.00016046,2]
[400420772,1767535831936,-248.71531821,0.00016046,2]
[400420773,1767535831947,-257.91778498,0.00016046,2]
[400420774,1767535831957,-267.46074303,0.00016046,2]
[400420775,1767535831966,-277.35679052,0.00016046,2]
[400420776,1767535831976,-1295.18,0.00016071,2]
[400420777,1767535831987,-1257.0192551,0.0001613,2]
[400420778,1767535832000,-6389.41695719,0.0001613,2]
[400420779,1767535832009,-168.30267871,0.00016162,2]
[400420780,1767535832019,-3240.0,0.00016262,2]
[400420781,1767535832029,-3319.26614632,0.00016299,2]
[400420782,1767535832039,-1295.18,0.00016345,2]
[400420783,1767535832048,-500.0,0.00016438,2]
[400420784,1767535832059,-500.0,0.00016438,2]
[400420785,1767535832069,-500.0,0.00016438,2]
[400420786,1767535832079,-500.0,0.00016438,2]
[400420787,1767535832089,-500.0,0.00016438,2]
[400420788,1767535832098,-500.0,0.00016438,2]
[400420789,1767535832107,-500.0,0.00016438,2]
[400420790,1767535832117,-500.0,0.00016438,2]
[400420791,1767535832127,-500.0,0.00016438,2]
[400420792,1767535832136,-500.0,0.00016438,2]
[400420793,1767535832146,-500.0,0.00016438,2]
[400420794,1767535832157,-500.0,0.00016438,2]
[400420795,1767535832166,-500.0,0.00016438,2]
[400420796,1767535832176,-500.0,0.00016438,2]
[400420797,1767535832185,-500.0,0.00016438,2]
[400420798,1767535832196,-500.0,0.00016438,2]
[400420799,1767535832209,-581.34559125,0.00016438,2]
[400420800,1767535832219,-500.0,0.00016438,2]
[400420801,1767535832229,-500.0,0.00016438,2]
[400420802,1767535832239,-500.0,0.00016438,2]
[400420803,1767535832248,-500.0,0.00016438,2]
[400420804,1767535832263,-500.0,0.00016438,2]
[400420805,1767535832275,-500.0,0.00016438,2]
[400420806,1767535832284,-500.0,0.00016438,2]
[400420807,1767535832294,-500.0,0.00016438,2]
[400420808,1767535832304,-500.0,0.00016438,2]
[400420809,1767535832313,-500.0,0.00016438,2]
[400420810,1767535832323,-500.0,0.00016438,2]
[400420811,1767535832333,-500.0,0.00016438,2]
[400420812,1767535832342,-500.0,0.00016438,2]
[400420813,1767535832352,-500.0,0.00016438,2]
[400420814,1767535832362,-500.0,0.00016438,2]
[400420815,1767535832372,-500.0,0.00016438,2]
[400420816,1767535832382,-500.0,0.00016438,2]
[400420817,1767535832392,-500.0,0.00016438,2]
[400420818,1767535832402,-500.0,0.00016438,2]
[400420819,1767535832412,-500.0,0.00016438,2]
[400420820,1767535832422,-500.0,0.00016438,2]
[400420821,1767535832434,-500.0,0.00016438,2]
[400420822,1767535832443,-500.0,0.00016438,2]
[400420823,1767535832454,-500.0,0.00016438,2]
[400420824,1767535832464,-500.0,0.00016438,2]
[400420825,1767535832474,-500.0,0.00016438,2]
[400420826,1767535832483,-500.0,0.00016438,2]
[400420827,1767535832494,-500.0,0.00016438,2]
[400420828,1767535832504,-500.0,0.00016438,2]
[400420829,1767535832514,-500.0,0.00016438,2]
[400420830,1767535832523,-500.0,0.00016438,2]
[400420831,1767535832533,-500.0,0.00016438,2]
[400420832,1767535832543,-500.0,0.00016438,2]
[400420833,1767535832552,-500.0,0.00016438,2]
[400420834,1767535832561,-500.0,0.00016438,2]
[400420835,1767535832571,-500.0,0.00016438,2]
[400420836,1767535832580,-500.0,0.00016438,2]
[400420837,1767535832590,-500.0,0.00016438,2]
[400420838,1767535832599,-500.0,0.00016438,2]
[400420839,1767535832609,-500.0,0.00016438,2]
[400420840,1767535832619,-500.0,0.00016438,2]
[400420841,1767535832633,-450.0,0.00016438,2]
[400420842,1767535832642,-466.58092947,0.00016438,2]
[400420843,1767535832794,-33.41907053,0.00016438,2]
[400420844,1767535832804,-500.0,0.00016438,2]
[400420845,1767535832814,-500.0,0.00016438,2]
[400420846,1767535832824,-500.0,0.00016438,2]
[400420847,1767535832833,-500.0,0.00016438,2]
[400420848,1767535832843,-500.0,0.00016438,2]
[400420849,1767535832852,-500.0,0.00016438,2]
[400420850,1767535832863,-479.80619309,0.00016438,2]
[400420851,1767535832874,-20.19380691,0.00016438,2]
[400420852,1767535832884,-500.0,0.00016438,2]
[400420853,1767535832893,-102.36291995,0.00016438,2]
[400420854,1767535837428,-358.33485164,0.00016438,2]
[400420855,1767535837542,-39.30222841,0.00016438,2]
[400420856,1767535837553,-500.0,0.00016438,2]
[400420857,1767535837563,-500.0,0.00016438,2]
[400420858,1767535837572,-500.0,0.00016438,2]
[400420859,1767535837582,-500.0,0.00016438,2]
[400420860,1767535837592,-500.0,0.00016438,2]
[400420861,1767535837602,-76.62772227,0.00016438,2]
[400420862,1767535837627,-423.37227773,0.00016438,2]
[400420863,1767535837636,-166.50657411,0.0001651,2]
[400420864,1767535837648,-1.7961046,0.0001651,2]
[400420865,1767535837658,-1923.75389572,0.0001652,2]
[400420866,1767535837670,-672.65078649,0.0001652,2]
[400420867,1767535837681,-1221.26746359,0.0001652,2]
[400420868,1767535837697,-254.18043806,0.0001652,2]
[400420872,1767535837810,-526.22508274,0.0001652,2]
[400421066,1767535839920,-1541.88675737,0.0001652,2]
[400421069,1767535839931,-3319.26614632,0.00016566,2]
[400421071,1767535839942,-1295.18,0.00016619,2]
[400421073,1767535839952,-500.0,0.0001662,2]
[400421075,1767535839962,-500.0,0.0001662,2]
[400421077,1767535839972,-500.0,0.0001662,2]
[400421080,1767535839991,-500.0,0.0001662,2]
[400421082,1767535840007,-500.0,0.0001662,2]
[400421084,1767535840018,-500.0,0.0001662,2]
[400421086,1767535840029,-6139.96442392,0.00016673,2]
[400421089,1767535840039,-510.0,0.0001672,2]
[400421091,1767535840049,-500.0,0.00016771,2]
[400421093,1767535840059,-511.41685725,0.00016771,2]
[400421095,1767535840070,-190201.863278,0.00016772,2]
[400421097,1767535840080,-9806.9019414,0.00016772,2]
[400421099,1767535840090,-4892.62487935,0.00016778,2]
[400421101,1767535840100,-422.71458731,0.0001679,2]
[400421103,1767535840110,-6139.96442392,0.00016827,2]
[400421105,1767535840121,-3319.26614632,0.00016832,2]
[400421107,1767535840131,-168.30267871,0.00016857,2]
[400421109,1767535840140,-1295.18,0.00016893,2]
[400421111,1767535840151,-500.0,0.00016921,2]
[400421113,1767535840160,-420.0,0.0001706,2]
[400421115,1767535840170,-3319.26614632,0.00017099,2]
[400421117,1767535840180,-1680.0,0.00017146,2]
[400421120,1767535840190,-300.0,0.00017158,2]
[400421122,1767535840202,-250.0,0.00017158,2]
[400421124,1767535840214,-250.0,0.00017158,2]
[400421126,1767535840224,-600.0,0.00017158,2]
[400421128,1767535840234,-600.0,0.00017158,2]
[400421130,1767535840244,-600.0,0.00017158,2]
[400421132,1767535840253,-600.0,0.00017158,2]
[400421134,1767535840263,-600.0,0.00017158,2]
[400421136,1767535840273,-195.0,0.00017158,2]
[400421138,1767535840284,-300.0,0.00017158,2]
[400421140,1767535840293,-195.0,0.00017158,2]
[400421142,1767535840303,-300.0,0.00017158,2]
[400421144,1767535840315,-300.0,0.00017158,2]
[400421146,1767535840324,-1295.18,0.00017167,2]
[400421148,1767535840334,-283.36048485,0.00017181,2]
[400421150,1767535840344,-168.30267871,0.00017205,2]
[400421152,1767535840358,-3516.0,0.00017274,2]
[400421154,1767535840368,-3516.0,0.00017286,2]
[400421157,1767535840379,-500.0,0.00017286,2]
[400421159,1767535840389,-673.0,0.00017337,2]
[400421161,1767535840399,-3319.26614632,0.00017366,2]
[400421163,1767535840408,-3516.0,0.000174,2]
[400421165,1767535840419,-287.61899177,0.00017415,2]
[400421167,1767535840431,-1295.18,0.00017441,2]
[400421169,1767535840440,-168.30267871,0.00017552,2]
[400421171,1767535840450,-500.0,0.0001756,2]
[400421173,1767535840460,-3516.0,0.00017587,2]
[400421175,1767535840469,-1000.0,0.00017608,2]
[400421177,1767535840479,-1000.0,0.00017608,2]
[400421179,1767535840489,-1000.0,0.00017613,2]
[400421181,1767535840499,-973.39,0.00017625,2]
[400421183,1767535840509,-724.36805306,0.00017633,2]
[400421185,1767535840519,-3319.26614632,0.00017633,2]
[400421187,1767535840529,-675.70650219,0.0001764,2]
[400421217,1767535840801,-768.206,0.0001764,2]
[400421219,1767535840812,-158.889,0.0001764,2]
[400421222,1767535840822,-1000.0,0.00017644,2]
[400421224,1767535840832,-1295.18,0.00017715,2]
[400421226,1767535840843,-500.0,0.00017726,2]
[400421228,1767535840852,-150.0,0.00017739,2]
[400421230,1767535840861,-1000.0,0.00017742,2]
[400421232,1767535840870,-1000.0,0.00017758,2]
[400421234,1767535840880,-3499.321,0.0001776,2]
[400421236,1767535840890,-633.13,0.0001776,2]
[400421238,1767535840900,-1274.058,0.0001776,2]
[400421240,1767535840909,-550.012,0.0001776,2]
[400421242,1767535840917,-1200.0,0.0001776,2]
[400421244,1767535840927,-913.0,0.0001776,2]
[400421246,1767535840936,-2118.959,0.0001776,2]
[400421248,1767535840945,-4815.0,0.0001776,2]
[400421250,1767535840955,-6547.0,0.0001776,2]
[400421252,1767535840964,-150.0,0.00017786,2]
[400421254,1767535840974,-3516.0,0.00017787,2]
[400421256,1767535840984,-150.0,0.00017788,2]
[400421258,1767535840994,-1000.0,0.000178,2]
[400421260,1767535841004,-500.0,0.00017809,2]
[400421262,1767535841014,-500.0,0.00017809,2]
[400421264,1767535841023,-500.0,0.00017809,2]
[400421266,1767535841033,-626.55536679,0.00017809,2]
[400421268,1767535841042,-500.0,0.00017809,2]
[400421270,1767535841052,-500.0,0.00017809,2]
[400421272,1767535841063,-3516.0,0.0001781,2]
[400421274,1767535841072,-1000.0,0.00017819,2]
[400421276,1767535841081,-1886.93042,0.0001782,2]
[400421277,1767535841091,-1886.93042,0.0001782,2]
[400421280,1767535841101,-1886.93043,0.0001783,2]
[400421281,1767535841110,-509.49377493,0.00017834,2]
[400421283,1767535841120,-200.0,0.00017856,2]
[400421285,1767535841130,-1886.93042,0.0001786,2]
[400421287,1767535841140,-1886.93043,0.0001788,2]
[400421289,1767535841150,-9694.1365,0.000179,2]
[400421292,1767535841160,-10000.0,0.000179,2]
[400421294,1767535841170,-222.8066,0.000179,2]
[400421296,1767535841179,-1734.72729165,0.000179,2]
[400421298,1767535841188,-1000.0,0.000179,2]
[400421300,1767535841199,-3319.26614632,0.000179,2]
[400421302,1767535841214,-168.30267871,0.000179,2]
[400421304,1767535841223,-159.67108242,0.000179,2]
[400421306,1767535841233,-1886.93042,0.0001791,2]
[400421308,1767535841244,-866.0,0.00017921,2]
[400421310,1767535841254,-150.0,0.00017926,2]
[400421312,1767535841264,-3516.0,0.00017933,2]
[400421313,1767535841276,-1295.18,0.00017989,2]
[400421315,1767535841286,-1452.35412525,0.0001799,2]
[400421317,1767535841296,-1452.35412525,0.0001799,2]
[400421320,1767535841306,-1452.35412525,0.0001799,2]
[400421322,1767535841315,-151.0,0.00017997,2]
[400421324,1767535841325,-500.0,0.00017998,2]
[400421325,1767535841335,-500.0,0.00017998,2]
[400421327,1767535841344,-500.0,0.00017999,2]
[400421329,1767535841354,-500.0,0.00017999,2]
[400421331,1767535841363,-500.0,0.00017999,2]
[400421333,1767535841373,-500.0,0.00017999,2]
[400421336,1767535841383,-500.0,0.00017999,2]
[400421337,1767535841392,-511.9256593,0.00017999,2]
[400421339,1767535841403,-300.0,0.00017999,2]
[400421341,1767535841413,-518.18459774,0.00017999,2]
[400421343,1767535841424,-500.0,0.00017999,2]
[400421346,1767535841433,-449.69501018,0.00017999,2]
[400421348,1767535841443,-500.0,0.00017999,2]
[400421349,1767535841453,-500.0,0.00017999,2]
[400421352,1767535841462,-500.0,0.00017999,2]
[400421354,1767535841472,-300.0,0.00017999,2]
[400421356,1767535841482,-600.92295159,0.00017999,2]
[400421358,1767535841493,-500.0,0.00017999,2]
[400421360,1767535841502,-500.0,0.00017999,2]
[400421362,1767535841511,-477.1153383,0.00017999,2]
[400421363,1767535841521,-300.0,0.00017999,2]
[400421365,1767535841532,-666.0,0.00017999,2]
[400421368,1767535841542,-500.0,0.00017999,2]
[400421369,1767535841552,-2770.0,0.00018,2]
[400421371,1767535841561,-2461553.20307825,0.00018,2]
[400421631,1767535844208,-278.49885641,0.0001698,2]
[400421650,1767535844373,-421.86400694,0.0001698,2]
[400421652,1767535844384,-5439.60156057,0.0001698,2]
[400421654,1767535844394,-629.072,0.0001776,2]
[400421656,1767535844404,-881.74950095,0.000179,2]
[400421658,1767535844413,-672020.01021835,0.00018,2]
[400421660,1767535844424,-10528.50672421,0.00018,2]
[400421664,1767535844446,-933.00658655,0.00018,2]
[400421746,1767535845447,-920.54003989,0.00018,2]
[400421753,1767535845504,-778.24642005,0.00018,2]
[400421856,1767535846516,-183.82790494,0.00018,2]
[400421858,1767535846527,-10098.0,0.00018,2]
[400421862,1767535846552,-922.80065795,0.00018,2]
[400422627,1767535872870,449.69501018,0.00015597,2]
[400422629,1767535884729,500.0,0.00015597,2]
[400422630,1767535902684,500.0,0.00015597,2]
[400422631,1767535902724,500.0,0.00015597,2]
[400422632,1767535902766,500.0,0.00015597,2]
[400422633,1767535902806,500.0,0.00015597,2]
[400422634,1767535902861,500.0,0.00015597,2]
[400422635,1767535902900,500.0,0.00015597,2]
[400422636,1767535902939,500.0,0.00015597,2]
[400422637,1767535902977,500.0,0.00015597,2]
[400422638,1767535903022,548.60389056,0.00015597,2]
[400422639,1767535903092,500.0,0.00015597,2]
[400422657,1767535933388,200.0,0.00016046,2]
[400422659,1767535934026,207.4,0.00016046,2]
[400422661,1767535934728,215.0738,0.00016046,2]
[400422664,1767535935381,274.54039158,0.00016046,2]
[400422671,1767535951039,500.0,0.00015597,2]
[400422672,1767535951075,266.69628261,0.00015597,2]
[400422692,1767535961770,500.0,0.00015597,2]
[400422693,1767535961951,500.0,0.00015597,2]
[400422696,1767535967606,500.0,0.00015597,2]
[400422699,1767535978894,-500.0,0.00016438,2]
[400422700,1767535978935,-500.0,0.00016438,2]
[400422701,1767535978974,-519.42569902,0.00016438,2]
[400422702,1767535979255,-500.0,0.00016438,2]
[400422703,1767535979296,-500.0,0.00016438,2]
[400422704,1767535979337,-500.0,0.00016438,2]
[400422705,1767535979531,500.0,0.00015597,2]
[400422706,1767535979575,456.14070919,0.00015597,2]
[400422707,1767535979703,500.0,0.00015597,2]
[400422708,1767535979761,500.0,0.00015597,2]
[400422709,1767535979802,500.0,0.00015597,2]
[400422710,1767535979876,300.0,0.00015597,2]
[400422711,1767535981434,300.0,0.00016437,2]
[400422712,1767535981733,500.0,0.00015597,2]
[400422751,1767536006081,500.0,0.00015597,2]
[400422772,1767536081824,166.66,0.00015636,2]
[400422773,1767536082161,166.66,0.00015965,2]
[400422774,1767536082592,166.66,0.00016294,2]
[400422783,1767536112525,626.55536679,0.00015597,2]
[400422860,1767536271029,500.0,0.00015597,2]
[400422866,1767536296449,634.06007988,0.00032876,120]
[400422928,1767536420114,8873.45463321,0.00016372,2]
[400422929,1767536420184,10000.01,0.00016372,2]
[400422930,1767536420253,10000.01,0.00016372,2]
[400422931,1767536420323,10000.01,0.00016372,2]
[400422932,1767536420393,10000.01,0.00016372,2]
[400422933,1767536420465,10000.01,0.00016372,2]
[400422934,1767536420532,10000.01,0.00016372,2]
[400422935,1767536420597,10000.01,0.00016372,2]
[400422936,1767536420661,10000.01,0.00016372,2]
[400422972,1767536646158,9400.01,0.00016163,2]
[400422973,1767536649455,171.0,9e-07,2]
[400422992,1767536725633,429.0,0.000108,2]
[400422993,1767536725708,597.06254062,0.000108,2]
[400422994,1767536729557,9402.94745938,0.00016,2]
[400422995,1767536729628,10000.01,0.00016,2]
[400422996,1767536729698,10000.01,0.00016,2]
[400422997,1767536729764,10000.01,0.00016,2]
[400422998,1767536729831,10000.01,0.00016,2]
[400423009,1767536737112,744.85,0.00013699,2]
[400423014,1767536760996,10000.01,8e-05,2]
[400423015,1767536761086,10000.01,8e-05,2]
[400423016,1767536761175,3538.59625108,8e-05,2]
[400423017,1767536764915,634.24593411,0.00011,2]
[400423033,1767536885652,-28000.0,0.00016,2]
[400423046,1767536908423,1156.40036966,0.00015,2]
[400423047,1767536910583,-999.0,0.00015994,3]
[400423048,1767536910612,-917.3578327,0.00016,2]
[400423049,1767536910641,-195.0,0.00016005,2]
[400423050,1767536910668,-250.0,0.0001601,2]
[400423051,1767536910693,-4581.52,0.0001602,2]
[400423052,1767536910721,-195.0,0.0001603,2]
[400423053,1767536910749,-250.0,0.00016057,2]
[400423054,1767536910776,-1000.0,0.00016062,2]
[400423055,1767536910802,-550.0,0.00016099,2]
[400423056,1767536910829,-500.0,0.000161,2]
[400423057,1767536910867,-500.0,0.000161,2]
[400423058,1767536910893,-157.79600896,0.000161,2]
[400423059,1767536910931,-500.0,0.000161,2]
[400423060,1767536910969,-500.0,0.000161,2]
[400423061,1767536911002,-500.0,0.000161,2]
[400423062,1767536911036,-500.0,0.000161,2]
[400423063,1767536911077,-500.0,0.000161,2]
[400423064,1767536911112,-241.38967121,0.000161,2]
[400423065,1767536911137,-3021.14,0.00016101,2]
[400423066,1767536911164,-5000.00041921,0.000162,5]
[400423118,1767536945135,-1779.72978441,0.00016,4]
[400423164,1767537030433,5008.59,0.00032877,120]
[400423176,1767537031581,10000.01,0.000159,2]
[400423177,1767537031654,10000.01,0.000159,2]
[400423178,1767537031724,10000.01,0.000159,2]
[400423180,1767537031800,10000.01,0.000159,2]
[400423184,1767537031875,10000.01,0.000159,2]
[400423185,1767537031947,10000.01,0.000159,2]
[400423186,1767537032018,10000.01,0.000159,2]
[400423187,1767537032083,10000.01,0.000159,2]
[400423188,1767537032150,10000.01,0.000159,2]
[400423189,1767537032219,10000.01,0.000159,2]
[400423190,1767537032235,-2849.1103521,0.000159,2]
[400423191,1767537032247,-2609.5598784,0.000159,2]
[400423192,1767537032260,-4914.7914,0.000159,2]
[400423193,1767537032274,-99941.99833543,0.000159,2]
[400423194,1767537032286,-2653.7957141,0.000159,2]
[400423195,1767537032489,-1142.34456792,0.000159,2]
[400423196,1767537032505,-776.32440645,0.000159,2]
[400423197,1767537032517,-545.35015898,0.000159,2]
[400423201,1767537037685,-3572.57677109,0.000159,2]
[400423202,1767537037697,-2865.3291245,0.000159,2]
[400423204,1767537037797,-91314.99999998,0.000159,2]
[400423386,1767537039658,-10250.8,0.000159,2]
[400423422,1767537040005,-1787.5109705,0.000159,2]
[400423430,1767537040072,-674775.40832055,0.000159,2]
[400423433,1767537040085,-300.0,0.00015999,2]
[400423435,1767537040094,-1200.0,0.00015999,2]
[400423437,1767537040103,-300.0,0.00015999,2]
[400423439,1767537040113,-284.0,0.00015999,2]
[400423441,1767537040123,-300.0,0.00015999,2]